Cogmind - Beta 10.2 @@@ ROGUE MODE // 2021.05.19 @ 10:37:23 Player: Teratos Result: Destroyed by D-53 Grenadier with Mini Grenade Launcher Performance ------------- Evolutions (1) 500 Regions Visited (4) 800 Robots Destroyed (119) 595 Value Destroyed (2529) 2529 Prototype IDs (5) 100 Alien Tech Used (0) 0 Bonus (302) 302 TOTAL SCORE: 4826 Bonus ------- High Alert Combat Kills 326 Friendly Fire -24 Cogmind --------- Core Integrity 0/400 Matter 300/300 Energy 90/100 System Corruption 1% Temperature Cool (140) Movement Core (300) Ox5 Location -9/Mines Parts ------- > --- POWER (2) -------- (None) > --- PROPULSION (2) --- (None) > --- UTILITY (3) ------ Large Storage Unit Advanced Signal Interpreter > --- WEAPON (2) ------- (None) > --- INVENTORY (10) --- EM Pulse Cannon EM Pulse Cannon EM Pulse Cannon Heavy Particle Cannon Heavy Particle Cannon Heavy Particle Cannon Heavy Particle Cannon Peak State ------------ > --- POWER ------------ Heavy Ion Engine Heavy Ion Engine > --- PROPULSION ------- Carbon-fiber Leg Carbon-fiber Leg > --- UTILITY ---------- Advanced Signal Interpreter Light Armor Plating Hardlight Generator > --- WEAPON ----------- Shock Bomb Launcher Shock Bomb Launcher > --- INVENTORY -------- Aluminum Leg Shock Bomb Launcher Shock Bomb Launcher [Rating: 25] Favorites ----------- Power Heavy Ion Engine Engine Heavy Ion Engine Propulsion Aluminum Leg Treads Light Treads Leg Aluminum Leg Utility Advanced Signal Interpreter Device Shield Generator Storage Large Storage Unit Processor Advanced Signal Interpreter Protection Light Armor Plating Weapon Shock Bomb Launcher Energy Gun EM Pulse Gun Energy Cannon EM Pulse Cannon Ballistic Gun Assault Rifle Launcher Shock Bomb Launcher Build | -11 -10 -10 -9 -9 ------- Run | Scr Mat Min Mat Min Slots Evolved 2 | . . . 2 . Power 1 | . . . 1 . Propulsion . | . . . . . Utility 1 | . . . 1 . Weapon . | . . . . . Parts Attached 63 | 5 12 7 39 . Power 10 | 1 2 . 7 . Engine 10 | 1 2 . 7 . Core . | . . . . . Reactor . | . . . . . Propulsion 12 | 2 3 1 6 . Treads 2 | . . . 2 . Leg 10 | 2 3 1 4 . Wheel . | . . . . . Hover . | . . . . . Flight . | . . . . . Utility 12 | . 1 5 6 . Device 3 | . . 1 2 . Storage 1 | . . . 1 . Processor 3 | . 1 1 1 . Hackware . | . . . . . Protection 5 | . . 3 2 . Artifact . | . . . . . Weapon 29 | 2 6 1 20 . Energy Gun 9 | 1 6 1 1 . Energy Cannon 7 | . . . 7 . Ballistic Gun 1 | 1 . . . . Ballistic Cannon . | . . . . . Launcher 12 | . . . 12 . Special Weapon . | . . . . . Impact Weapon . | . . . . . Slashing Weapon . | . . . . . Piercing Weapon . | . . . . . Special Melee Weapon . | . . . . . Unidentified Prototypes 3 | . . . 3 . Parts Lost 21 | . 4 1 10 6 Power 4 | . 2 . . 2 Propulsion 4 | . 1 . 1 2 Utility 4 | . . . 4 . Weapon 9 | . 1 1 5 2 Highest Loss Streak 5 | . 2 1 5 5 Average Slot Usage (%) 92 | . 82 97 95 77 Engine 18 | . 13 14 21 22 Treads 3 | . . . 5 11 Leg 19 | . 27 28 16 . Device 4 | . . . 7 . Storage 1 | . . . 2 11 Processor 12 | . 13 13 11 11 Protection 7 | . . 11 8 . Energy Gun 11 | . 26 28 1 11 Energy Cannon 3 | . . . 4 11 Launcher 9 | . . . 15 . Naked Turns . | . . . . . Heaviest Build 46 | 7 9 14 46 41 Greatest Support 40 | 20 20 20 40 40 Greatest Overweight (x) 13 | . . . 2 13 Average Overweight (x) . | . . . . 1 Largest Inventory Capacity 10 | 4 4 4 10 10 Average Capacity 5 | 4 4 4 5 10 Most Carried 10 | . 2 4 10 7 Average Carried 3 | . . 2 4 7 Final Capacity 10 | 4 4 4 10 10 Final Carried 7 | . 2 3 7 7 Class Distribution -------------------- 87% | Mutant 12% | Scavenger-Mutant Dominant Class ---------------- Mutant | -10/Materials Mutant | -10/Mines Mutant | -9/Materials Mutant | -9/Mines Resources | -11 -10 -10 -9 -9 ----------- Run | Scr Mat Min Mat Min Matter Collected 1450 | 112 253 70 1015 . Remotely . | . . . . . Salvage Created 4596 | . 896 267 3232 201 Parts 275 | . 55 11 193 16 Haulers Intercepted 7 | . 1 . 6 . Recyclers Shooed 8 | . 3 1 3 1 Parts Field Recycled . | . . . . . Retrieved Matter . | . . . . . Parts Self-Destructed . | . . . . . Prevented . | . . . . . Kills | -11 -10 -10 -9 -9 ------- Run | Scr Mat Min Mat Min Combat Hostiles Destroyed 66 | . 12 4 44 6 Guns 18 | . 8 4 2 4 Cannons 4 | . . . 4 . AOE 39 | . 2 . 35 2 Classes Destroyed 13 | . 9 . 4 . Worker 11 | . 2 1 8 . Builder 11 | . 2 1 8 . Tunneler 5 | . 1 1 3 . Hauler 7 | . 1 . 6 . Recycler 8 | . 3 . 4 1 Operator 3 | . 2 . 1 . Watcher 8 | . 3 . 5 . Swarmer 16 | . 6 . 4 6 Grunt 33 | . 6 4 23 . Brawler 2 | . . . 2 . Duelist 3 | . . . 3 . Protector 2 | . . . 2 . Sentry 10 | . . . 10 . Best Kill Streak 9 | . 7 3 9 4 Combat Bots Only 8 | . 3 2 8 4 Max Kills in Single Turn 4 | . 3 1 4 2 Gunslinging 1 | . 1 . . . Exploded 3 | . 2 . 3 2 Melee . | . . . . . Uniques/NPCs Destroyed . | . . . . . Combat | -11 -10 -10 -9 -9 -------- Run | Scr Mat Min Mat Min Damage Taken 2701 | . 391 233 1545 532 Core 499 | . 50 43 211 195 Absorbed by Shields 236 | . . . 236 . Core Remaining (%) 81 | 100 . 62 . . Volleys Fired 206 | . 58 22 115 11 Largest 2 | . 2 2 2 2 Hottest 126 | . 80 80 126 108 Shots Fired 384 | . 102 43 217 22 Gun 185 | . 102 43 29 11 Cannon 65 | . . . 54 11 Launcher 134 | . . . 134 . Special . | . . . . . Kinetic . | . . . . . Thermal 5 | . . . 5 . Explosive . | . . . . . Electromagnetic 379 | . 102 43 212 22 Robot Hit Streak 25 | . 25 6 12 11 Robot Miss Streak 7 | . 7 2 5 5 Penetration Max . | . . . . . Secondary Targets 2 | . 2 . . . Max Gunslinging Chain 1 | . 1 . . . Shots Hit Robots 199 | . 70 25 93 11 Core Hits 156 | . 31 12 105 8 Critical Hits 1 | . . . 1 . Critical Kills 1 | . . . 1 . Critical Parts Destroyed . | . . . . . Melee Attacks . | . . . . . Impact . | . . . . . Slashing . | . . . . . Piercing . | . . . . . Sneak Attacks . | . . . . . Combat Hostiles . | . . . . . Follow-up Attacks . | . . . . . Damage Inflicted 6613 | . 1192 414 4795 212 Guns 1660 | . 980 325 265 90 Cannons 804 | . . . 777 27 Explosions 4131 | . 211 89 3743 88 Melee . | . . . . . Ramming 18 | . 1 . 10 7 Kinetic . | . . . . . Thermal 990 | . 211 89 602 88 Explosive . | . . . . . Electromagnetic 5605 | . 980 325 4183 117 Impact . | . . . . . Slashing . | . . . . . Piercing . | . . . . . Highest Corruption 1 | . . . 1 1 Average Corruption 1 | . . . 1 1 Corruption Purged . | . . . . . Effects 4 | . . . 1 3 Message Errors 2 | . . . . 2 Energy Discharges 1 | . . . 1 . Targeting Errors 1 | . . . . 1 Overload Shots . | . . . . . Overflow Damage 156 | . 33 1 122 . Projectiles 79 | . . . 79 . Explosions 77 | . 33 1 43 . Melee . | . . . . . Knockbacks . | . . . . . Impact . | . . . . . Kinetic . | . . . . . Secondary . | . . . . . Self-Inflicted Damage 391 | . 31 . 360 . Shots 22 | . 1 . 21 . Rammed 4 | . 1 . 2 1 Targets Rammed 4 | . 1 . 2 1 Kicked . | . . . . . Crushed . | . . . . . Highest Temperature 420 | . 174 171 328 420 Average Temperature 78 | . 57 59 79 166 Received Heat Transfer 677 | . 171 129 377 . Effects 5 | . . . 1 4 Energy Bleed 1 | . . . . 1 Interference 4 | . . . 1 3 Siege Activations . | . . . . . Robots Corrupted 9 | . 3 . 6 . Combat Hostiles 5 | . 2 . 3 . Parts Fried 36 | . 6 3 27 . Impact Corruptions . | . . . . . Robots Melted . | . . . . . Combat Hostiles . | . . . . . Parts Melted 3 | . 1 . 1 1 Heat Transferred 1392 | . 250 100 942 100 Parts Sabotaged . | . . . . . Parts Stolen . | . . . . . Parts Stripped . | . . . . . Power Chain Reactions 34 | . 4 1 28 1 Missiles Intercepted . | . . . . . Alert | -11 -10 -10 -9 -9 ------- Run | Scr Mat Min Mat Min Peak Influence 946 | . 238 135 946 518 Initial 363 | . . . . 363 Average 256 | . 89 25 372 430 Maximum Alert Level 3 | . 1 . 3 2 Low Security (%) 59 | 100 96 100 39 . Level 1 10 | . 3 . 16 15 Level 2 17 | . . . 23 84 Level 3 12 | . . . 21 . Level 4 . | . . . . . Level 5 . | . . . . . High Security . | . . . . . Max Security . | . . . . . Squads Dispatched 11 | . 3 1 7 . Investigation 7 | . 2 1 4 . Extermination . | . . . . . Reinforcement 2 | . 1 . 1 . Assault 2 | . . . 2 . Garrison . | . . . . . Intercept . | . . . . . Construction Impeded 1 | . . . 1 . Haulers Reinforced . | . . . . . Stealth | -11 -10 -10 -9 -9 --------- Run | Scr Mat Min Mat Min Distress Signals 3 | . . . 3 . Communications Jammed . | . . . . . Distress Signals . | . . . . . Times Spotted 88 | . 18 5 55 10 Peak Tracking Total 8 | . 3 2 8 4 Tactical Retreats 7 | . . 1 5 1 Traps | -11 -10 -10 -9 -9 ------- Run | Scr Mat Min Mat Min Traps Triggered 5 | . 1 . 4 . Indirectly 2 | . . . 2 . Trap Hack Attempts . | . . . . . Triggered . | . . . . . Disarmed . | . . . . . Reprogrammed . | . . . . . Reused . | . . . . . Traps Extracted . | . . . . . Installed . | . . . . . Triggered . | . . . . . Machines | -11 -10 -10 -9 -9 ---------- Run | Scr Mat Min Mat Min Machines Disabled 15 | . 2 1 12 . Max in Single Turn 3 | . 1 1 3 . Machines Sabotaged . | . . . . . Garrisons Compromised . | . . . . . Overloaded Fab Kills . | . . . . . Fab Network Shutdowns . | . . . . . Hacking | -11 -10 -10 -9 -9 --------- Run | Scr Mat Min Mat Min Machines Accessed 17 | . 6 1 10 . Terminals 13 | . 5 . 8 . Fabricators . | . . . . . Repair Stations 2 | . 1 . 1 . Recycling Units . | . . . . . Scanalyzers 1 | . . . 1 . Garrison Access . | . . . . . Total Hacks 47 | . 17 1 29 . Successful 25 | . 9 1 15 . Failed 22 | . 8 . 14 . Catastrophic 2 | . 1 . 1 . Database Lockouts . | . . . . . Manual . | . . . . . Terminals 31 | . 12 . 19 . Fabricators . | . . . . . Repair Stations 11 | . 5 . 6 . Recycling Units . | . . . . . Scanalyzers 4 | . . . 4 . Garrison Access . | . . . . . Terminal Hacks 12 | . 5 1 6 . Robot Analysis 1 | . . . 1 . Prototype ID Bank 1 | . . . 1 . Open Door 1 | . . 1 . . Branch Access Points 1 | . 1 . . . Locate Traps 1 | . 1 . . . Patrol Status 1 | . 1 . . . Recall Investigation 1 | . 1 . . . Zone Layout 5 | . 1 . 4 . Fabricator Hacks . | . . . . . Repair Station Hacks 10 | . 4 . 6 . Scan Component 5 | . 2 . 3 . Repair 5 | . 2 . 3 . Recycling Unit Hacks . | . . . . . Scanalyzer 3 | . . . 3 . Insert Component 1 | . . . 1 . Analyze 2 | . . . 2 . Garrison Access Hacks . | . . . . . Unauthorized Hacks . | . . . . . Terminals . | . . . . . Fabricators . | . . . . . Repair Stations . | . . . . . Recycling Units . | . . . . . Scanalyzers . | . . . . . Garrison Access . | . . . . . Data Cores Recovered . | . . . . . Used . | . . . . . Hacking Detections 11 | . 4 . 7 . Full Trace Events 4 | . 1 . 3 . Feedback Events . | . . . . . Feedback Blocked . | . . . . . Robot Schematics Acquired . | . . . . . Robots Built . | . . . . . Matter . | . . . . . Time . | . . . . . Total Robot Build Rating . | . . . . . Part Schematics Acquired 1 | . . . 1 . Parts Built . | . . . . . Matter . | . . . . . Time . | . . . . . Total Part Build Rating . | . . . . . Parts Repaired 4 | . 2 . 2 . Time 179 | . 52 . 127 . Parts Recycled . | . . . . . Recycled Matter . | . . . . . Retrieved Matter . | . . . . . Retrieved Components . | . . . . . Parts Scanalyzed 1 | . . . 1 . Part Schematics Acquired 1 | . . . 1 . Parts Damaged . | . . . . . Bothacking | -11 -10 -10 -9 -9 ------------ Run | Scr Mat Min Mat Min Used RIF Installer . | . . . . . Robots Hacked . | . . . . . Non-combat . | . . . . . Combat . | . . . . . Robot Hacks Applied . | . . . . . Relay Couplers Released . | . . . . . Robots Rewired . | . . . . . Allies Hacked . | . . . . . Hacks Repelled . | . . . . . Allies | -11 -10 -10 -9 -9 -------- Run | Scr Mat Min Mat Min Total Allies . | . . . . . Largest Group . | . . . . . Highest-Rated Group . | . . . . . Highest-Rated Ally . | . . . . . Total Orders . | . . . . . Ally Attacks . | . . . . . Total Damage . | . . . . . Kills . | . . . . . Allies Corrupted . | . . . . . Allies Melted . | . . . . . Intel | -11 -10 -10 -9 -9 ------- Run | Scr Mat Min Mat Min Robot Analysis Total 1 | . . . 1 . Derelict Logs Recovered 3 | . . 2 . 1 Drone Launches . | . . . . . Drone Recoveries . | . . . . . Exploration | -11 -10 -10 -9 -9 ------------- Run | Scr Mat Min Mat Min Turns Passed 6958 | 47 1238 1306 4073 294 Spaces Moved 4233 | 40 827 999 2239 128 Core 14 | 11 . . . 3 Treads 654 | . . . 529 125 Legs 3565 | 29 827 999 1710 . Wheels . | . . . . . Hover . | . . . . . Flight . | . . . . . Fastest Speed 50 | 50 120 120 120 180 Average Speed 140 | 100 120 120 154 202 Slowest Speed 700 | 120 120 120 180 700 Overloaded Moves . | . . . . . Propulsion Burnouts . | . . . . . Robots Hopped . | . . . . . Cave-ins Triggered . | . . . . . Exploration Rate (%) 65 | 4 94 99 97 31 Regions Visited 4 Branch Regions 2 Pre-discovered Areas . | . . . . . Known Exits Taken 3 | . 1 1 1 . Unknown Exits Taken 1 | 1 . . . . Scrap Searched 3 | . . 3 . . Spaces Dug . | . . . . . Terrain Destroyed 113 | . 11 6 94 2 Melee . | . . . . . Projectile . | . . . . . AOE 113 | . 11 6 94 2 Terrain Rammed . | . . . . . Walls Destroyed . | . . . . . Machines Disabled . | . . . . . Actions | -11 -10 -10 -9 -9 --------- Run | Scr Mat Min Mat Min Total 4847 | 44 966 1062 2635 140 Wait 308 | . 66 30 212 . Move 4229 | 39 826 998 2238 128 Hop . | . . . . . Pick Up 11 | . . 1 10 . Fast Attach 37 | 5 7 4 21 . Attach 7 | . . 2 5 . Detach 3 | . . 1 2 . Swap 19 | . 5 1 13 . Drop 23 | . 3 3 17 . Fire 206 | . 58 22 115 11 Melee . | . . . . . Ram . | . . . . . Kick 2 | . 1 . 1 . Crush 2 | . . . 1 1 Escape Stasis . | . . . . . Rewire . | . . . . . Trap . | . . . . . Miscellaneous . | . . . . . Route ------- -11/Scrapyard -10/Materials (discovered 5 exits: *Mat x3 / *Min x2) -10/Mines (discovered 2 exits: *Mat x2) -9/Materials (discovered 5 exits: *Mat x3 / *Min x2) -9/Mines (discovered 1 exit: *Mat) History --------- Turn | Location | Event 2 | -11/Scrapyard | Discovered new exit (range 16) 48 | -11/Scrapyard | Entered Materials 266 | -10/Materials | Discovered new exit (range 16) 308 | -10/Materials | Build established: Mutant 483 | -10/Materials | Discovered new exit (range 6) 488 | -10/Materials | Identified exit to Mines 633 | -10/Materials | Discovered new exit (range 3) 650 | -10/Materials | Identified exit to Materials 712 | -10/Materials | Discovered exit to Mines (range 6) 833 | -10/Materials | Discovered exit to Materials (range 14) 1068 | -10/Materials | Repaired EM Pulse Gun 1095 | -10/Materials | Repaired Aluminum Leg 1286 | -10/Materials | Entered Mines 1624 | -10/Mines | Met a Derelict shopkeep closing up shop 1813 | -10/Mines | Discovered exit to Materials (range 7) 1884 | -10/Mines | Discovered exit to Materials (range 8) 2138 | -10/Mines | Learned Materials machine intel 2592 | -10/Mines | Entered Materials 2592 | -9/Materials | Evolved 2 slots: Power x1, Utility x1 2593 | -9/Materials | Loaded intel: 49 machine locations 3020 | -9/Materials | Build established: Scavenger-Mutant 3835 | -9/Materials | Discovered new exit (range 14) 3862 | -9/Materials | Build established: Mutant 3912 | -9/Materials | Discovered new exit (range 12) 4162 | -9/Materials | Repaired Shock Bomb Launcher 4215 | -9/Materials | Repaired Hvy. Ion Engine 4692 | -9/Materials | Discovered new exit (range 16) 4713 | -9/Materials | Identified exit to Materials 5118 | -9/Materials | Discovered new exit (range 6) 5316 | -9/Materials | Identified exit to Mines 6013 | -9/Materials | Discovered exit to Materials (range 4) 6192 | -9/Materials | First assault squad dispatched 6290 | -9/Materials | Core integrity fell below 50% 6316 | -9/Materials | Destroyed 8 combat bots 6326 | -9/Materials | Lost 5 parts (1u4w) 6665 | -9/Materials | Entered Mines 6665 | -9/Mines | Discovered exit to Materials (range 10) 6906 | -9/Mines | Assembled infested the area 6956 | -9/Mines | Core integrity fell below 20% 6959 | -9/Mines | Destroyed by D-53 Grenadier with Mini Grenade Launcher Last Messages --------------- 06934_ System corrupted: Imp. EM Shotgun targeting data glitched. 06934_ Chain reaction triggered in Lgt. Ion Engine. 06934_ S-10 Pest destroyed. 06937_ K-01 Serf collects debris. 06943_ Flight Unit melted. 06943_ S-10 Pest destroyed. 06946_ Overheating: System interference. 06946_ Adv. Signal Interpreter temporarily disabled. 06946_ C-30 ARC bursts open, deploying its payload. 06946_ D-53 Grenadier unfolds itself. 06950_ Overheating: System interference. 06950_ Imp. EM Shotgun temporarily disabled. 06951_ Imp. EM Shotgun destroyed. 06951_ EM Pulse Cannon destroyed. 06951_ Hvy. Ion Engine destroyed. 06951_ Matter Pump disabled. 06951_ K-01 Serf collects debris. 06955_ Hvy. Ion Engine destroyed. 06956_ Overheating: Energy bleed (-24). 06956_ K-01 Serf collects debris. Map ----- +----------------------------------------------------+ | #######?# ! #??????????? ##??????????????? | | ????????## #?????????? ##?????????????? | | ?????????# #?????????? ##????????????? | | ????????## ##????????? ?????????????? | | #?####### ##?????????? #??????????????? | | ### ##??????????# #???????????????? | | ############?# #######???## #####???????????? | | ?????????????# #?## #???????????? | | ?????????????######## ### #???????????????? | | ????????????????????# #????????????????? | | ????????????????????##### ##????????????????? | | #???????????????????????# ###?????????????????? | | #???????????????????????# ##???????????????????? | | #???????????????????????# ##????????????????????? | | #???????????????????????# #?????????????????????? | | ????????????????????????#% #?????????????????????? | | ??????????????????????### #?????????????????????? | | #????????????????????## #?????????????????????? | | #??????????????????## ###???????????????????? | | ????????????????## """ ;##??????????????????? | | ### ??????????????## " = #######????????????? | | #???#?????????????# %=% #????????????? | | ???????????????????# dd k== #????????????? | | ???????????????????# ## #????????????? | | ??????????????????## #???????????????? | | ??????????????????# @ ##???????????????? | | ??????????????????## ##????????????????? | | ???????????????????# ##?????????????????? | | ???????????????????## #??????????????????? | | ????????????????????#### #??????????????????? | | ???????????????????????##### #??????????????????? | | ???????????????????????????? ??????????????????? | | ????????????????????????????? ##?????????????????? | | ????????????????????????????? #??????????????????? | | ??????????????????????????????#??????????????????? | | ?????????????????????????????????????????????????? | | ?????????????????????????????????????????????????? | | ?????????????????????????????????????????????????? | | ?????????????????????????????????????????????????? | | ?????????????????????????????????????????????????? | | ?????????????????????????????????????????????????? | | ?????????????????????????????????????????????????? | | ?????????????????????????????????????????????????? | | ?????????????????????????????????????????????????? | | ?????????????????????????????????????????????????? | | ?????????????????????????????????????????????????? | | ?????????????????????????????????????????????????? | | ?????????????????????????????????????????????????? | | ?????????????????????????????????????????????????? | | ?????????????????????????????????????????????????? | +----------------------------------------------------+ Best States ------------- Heat Dissipation 28 Energy Generation 23 Energy Capacity 460 Matter Stores 300 Matter Capacity 300 Sight Range 16 Terrain Scan Density 10 Armor Coverage 150 Propulsion Shielding 33 Evasion (%) 40 Targeting Accuracy 6 Recoil Reduction 2 Item Schematics ----------------- Shock Bomb Launcher | -9/Materials | Scanalyzed Robot Schematics ------------------ None Fabricated ------------ Nothing Alien Tech Used ----------------- None Achievements -------------- None Challenges ------------ None Game ------ Seed CompactRemoteSheargun Manual? 0 Play Time 00:54:05 Cumulative 63.9 hours Start 2021.05.19 @ 08:14:53 End 2021.05.19 @ 10:37:23 Sessions 2 Manual Loads 0 Difficulty Rogue Special Mode None Game No. 134 Rogue 134 Adventurer 0 Explorer 0 Win Type - Total 0 Types 0/0/0/0/0/0/0/0/0 Lore% 27 Gallery% 34 Achievement% 26 Wizard Run 0 Options --------- ASCII 0 Keyboard 0 Movement Numpad Keybinds 0 Fullscreen 1 Font 12/Smallcaps Map View 83x54 Tactical HUD 1 Map Filters NONE Filters NONE Steam 1 RUN: d1c4867e-8bfd-461c-89e5-d53e5e317475